{"text_format":"1","workbook":"xlsx","n_sheets":5,"sheets":["Titelblatt","Bemerkungen zum Angebot","Zusammenstellung","Auftraggeber","Kalkulation"],"not_rendered":{"charts":0,"images":2,"macros":1,"external_links":0,"defined_names":8,"comments":0,"pivot_tables":0},"unopened":[],"bounds":{"document_bytes":16777216,"sheet_cells":100000,"rows_first":2000,"rows_last":500,"rows_between":2000,"halvings":0,"cell_chars":16384,"cell_head_chars":4096},"cells_cut":0,"cells_raw":0,"read":"whole","date_system":"1900"}

{"sheet":"Titelblatt","index":0,"n_rows":26,"n_cols":6,"rows_kept":26,"cut":false,"hidden":false,"merged":[[4,2,4,4],[4,5,4,12],[0,0,0,1],[0,5,1,12],[2,2,2,4],[2,5,2,12],[3,2,3,3],[15,5,15,12],[5,2,5,3],[6,2,6,4],[6,5,6,12],[7,2,7,3],[8,2,8,4],[8,5,8,12],[9,2,9,3],[10,2,10,4],[12,2,12,4],[14,2,14,4],[15,2,15,3],[16,1,16,2],[16,3,16,4],[16,5,16,12],[17,1,17,2],[17,3,17,4],[17,5,17,12],[18,1,18,2],[19,1,25,2],[20,5,20,12],[21,5,21,12],[22,5,22,12],[23,5,23,12],[24,5,24,12],[25,5,25,12]]}
["Bau- und Justizdepartement",null,null,null,null,"administrative Angaben einfügen,\nrote Felder sind durch den Ausschreibenden auszufüllen"]
[null,"Amt für Verkehr und Tiefbau"]
[null,"Gemeinde",null,null,null,"z.B. Solothurn / Buchegg, Orsteil Brittern"]
[]
[null,"Strasse",null,null,null,"z.B. Baselstrasse"]
[]
[null,"Abschnitt / Objekt",null,null,null,"z.B. Kreisel Baseltor - Obere Sternengasse / Rötibrücke"]
[]
[null,"Projekt",null,null,null,"z.B. Strassensanierung"]
[]
[null,"Projektphase","Ausschreibung für spezielle Ingenieurleistungen"]
[]
[null,"Inhalt","Dokument D zu ABC spezial\nPreisangebot"]
[]
[null,"Übersicht"]
[null,"Eingabetermin",null,null,null,"z.B. Donnerstag, 15. Februar 2018 (Wochentag, T. Montat Jahr)"]
[null,"(Logo einfügen)",null,"Anbieter\nStrasse Nr.\nPLZ Ort",null,"Logo des Anbieters einfügen\nName und Adresse des Anbieters eintragen"]
[null,"Angebotssumme inkl. MwSt.",null,{"$f":"Zusammenstellung!E22","v":0},null,"Angebotssumme wird automatisch übernommen"]
[null,"Unterschrift"]
[null,"Amt für Verkehr und Tiefbau\nRötihof, Werkhofstrasse 65, 4509 Solothurn\nTelefon 032 627 26 33\navt@bd.so.ch / avt.so.ch",null,"Achs-Nr."]
[null,null,null,"Bezugspunkt (BP)",null,"xxxx + xxxx m  bis  xxxx + xxxx m"]
[null,null,null,"Achs-Nr.",null,"wenn keine 2. Achse = \"-\" Bindestrich eintragen (inkl. BP)"]
[null,null,null,"Bezugspunkt (BP)",null,"wenn keine 2. Achse = \"-\" Bindestrich eintragen (inkl. BP)"]
[null,null,null,"Objekt-Nr. KB",null,"X/X/X"]
[null,null,null,"Projekt-Nr.",null,"XTK.XXXXX.Y"]
[null,null,null,"Solothurn,",null,"z.B. 15. Februar 2018 (T. Montat Jahr)"]

{"sheet":"Bemerkungen zum Angebot","index":1,"n_rows":41,"n_cols":12,"rows_kept":41,"cut":false,"hidden":false,"merged":[[2,0,2,8],[3,0,3,8],[5,0,5,8],[33,9,34,17],[28,2,28,8],[30,1,30,8],[29,9,32,16],[26,1,26,8],[5,9,5,17],[13,9,18,17],[6,1,6,8],[7,1,7,8],[14,0,14,1],[13,0,13,1],[33,0,33,8],[22,0,22,8],[40,9,41,16],[24,1,24,8],[27,1,27,8],[25,1,25,8],[36,0,36,8],[37,0,37,8],[40,0,40,8],[20,0,20,8],[8,0,8,8],[9,0,9,8],[16,1,16,8],[17,1,17,8],[18,0,18,8]]}
["1.","Bemerkungen zum Preisangebot"]
["1.1.","Allgemeines"]
["Es sind Nettoangebote einzureichen. Allfällige Rabatte, Slonti sowie die Mehrwertsteuer sind im Angebot aufzuführen.",null,null,null,null,null,null,null,null,null,null,false]
["Die für die Bewertung massgebende Angebotssumme setzt sich zusammen aus der Summe der Honorarkosten für die Leistungen gemäss Dokument ABC spezial, den Nebenkosten, einem allfälligen Rabatt, einem allfälligen Skonto und der Mehrwertsteuer.",null,null,null,null,null,null,null,null,null,null,false]
["1.2."," Kalkulationsmodell für die Berechnung des Zeitaufwandes"]
["Für die Kalkulation des Zeitaufwands können zwei unterschiedliche Modelle zur Anwendung gelangen. Das oder die zur Anwendung gelangenen Modelle sind nachstehend angekreuzt.",null,null,null,null,null,null,null,null,"das jeweilige Modell für die Berechnung des Stundaufwands ist aus drei Möglichkeiten auszuwählen "]
[null,"Angabe Zeitaufwand durch den Anbieter\nDer Zeitaufwand für die Leistungserbringung einer Teilphase ist vom Anbieter zu berechnen und im Tabellenblatt \"Kalkulation\" auszuweisen."]
[null,"Angabe Zeitaufwand durch den Auftraggeber \nDer Zeitaufwand für die Leistungserbringung einer Teilphase wird vom Auftraggeber vorgegeben; der Anbieter hat die Verteilung des Zeitaufwands im Tabellenblatt \"Kalkulation\" auszuweisen."]
["Vorgaben\nIm Tabellenblatt \"Auftraggeber\" sind die Vorgaben des Auftraggebers ersichtlich."]
["Stundenanteil Schlüsselpersonen\nDer Stundenanteil der Schlüsselpersonen an der Gesamtstundenzahl muss mindestens 40% betragen."]
[1.3,"Preisgestaltung und Honorierung"]
["Bürospezifische Stundenansätze:"]
[]
["Kat.",null,"A","B","C","D","E","F","G","Es sind nur die Gelb markierten Felder und die Stundenansätze auszufüllen, diese werden automatisch in die Kalkulation übertragen! Farbe ändert sich nach Eingabe automatisch!"]
["CHF/Std."]
[]
["Z","Die Vergütung erfolgt im Zeittarif nach effektivem Aufwand und offerierten Stunden-ansätzen."]
["P","Die Vergütung erfolgt als Pauschale, wobei die aufzuwendenden Stunden gleichwohl pro Person anzugeben sind."]
["Die Vergütungsart ist im Tabellenblatt \"Zusammenstellung\" vom Auftraggeber pro Leistungsmodul vorgegeben bzw. festgelegt."]
["1.4.","Nachträge"]
["Nachträge infolge Zusatzleistungen und Bestellungsänderungen sind vor Inangriffnahme der Arbeiten anzumelden. Bei verspäteter Anmeldung entfällt die Honorierung. Solche Nachträge werden auf derselben Basis und mit denselben Konditionen vergütet wie die hier ausgeschriebenen Leistungen."]
["1.5."," Umgang mit Kostendach"]
["Die offerierten Leistungen für die Teilphase 21 sowie Leistungen ohne SIA-Bezug gelten jeweils als separates Kostendach."]
[1.6,"Nebenkosten"]
[null,"Unter Nebenkosten fallen:"]
[null,"-    Kosten für Reisezeiten und -spesen, Verpflegung etc."]
[null,"-    Kosten für die Erstellung entsprechender Fotokopien, Dossiers und Plots"]
[null,"-    Dokumentationskosten:"]
[null,null,"- Als Dokumentationskosten gelten Arbeitspapiere, sowie folgende Dossiers:"]
[null,null,"- Definition des Bauvorhabens, Machbarkeitsstudie:",null,null,null,null,null,"Exemplare","Rosa Felder sind durch den Ausschreibenden vorzugeben und auszufüllen, Farbe ändert sich nach Eingabe automatisch, auch bei Eingabe \"-\""]
[null,"Diese sind mit einem Prozentsatz abzuschätzen."]
[]
[1.7,"Kosten für weitere Unterlagen"]
["Weitere Dossiers werden nach den ortsüblichen Reprotarifen separat nach Aufwand vergütet."]
[]
[1.8,"Preisänderungsabrechnung"]
["Eine allfällige Preisänderungsabrechnung erfolgt gemäss der letzten, zur Zeit des Vertragsabschlusses publizierten Empfehlung zur Honorierung der KBOB, erhältlich unter www.kbob.ch."]
["Die Preisänderungsabrechnung erfolgt erst ab einer mit der Gleitpreisformel berechneten Veränderung von über 2 % (Berechnung erfolgt mit dem Nominallohnindex der Wirtschaftszweige 70-74)."]
[]
[1.9,"Rechnungsstellung, Zahlungsbedingungen"]
["Die Rechnungsstellung erfolgt monatlich/quartalsweise. Die Zahlungsfrist beträgt 30 Tage. Ein offerierter Skonto gilt bei Bezahlung innerhalb dieser Frist.\n\nRechnungsadresse:\nAmt für Finanzen\nDLZ Kreditoren\nBarfüssergasse 24\n4509 Solothurn\n\nBei der Rechnung ist zwingend die Bestellnummer zu vermerken.",null,null,null,null,null,null,null,null,"Angaben zur Rechnungsstellung allenfalls anpasen (z.B. quartalsweise)"]

{"sheet":"Zusammenstellung","index":2,"n_rows":31,"n_cols":9,"rows_kept":31,"cut":false,"hidden":false,"merged":[[30,0,30,4],[10,5,17,9],[4,6,4,13],[2,0,2,1],[6,0,6,1],[7,6,9,9],[5,0,5,3],[23,0,28,4]]}
["2. Zusammenstellung des Angebotes"]
[]
["Gliederung der Leistungen nach sia 103, Art. 4.3 respektive ohne sia-Bezug",null,"Z/P","Aufwand\n[h]","Aufwand\n[CHF]",null,null,"Z","Zeittarif"]
["4.3.21","Definition des Bauvorhabens, Machbarkeitsstudie",{"$f":"IF(Auftraggeber!I10=FALSE,\"-\",IF(Auftraggeber!O10=TRUE,\"Z\",\"P\"))","v":"-"},{"$f":"Kalkulation!E32","v":0},{"$f":"Kalkulation!E33","v":0}]
[null,"Leistungen ohne sia-Bezug",{"$f":"IF(Auftraggeber!I11=FALSE,\"-\",IF(Auftraggeber!O11=TRUE,\"Z\",\"P\"))","v":"-"},{"$f":"Kalkulation!F32","v":0},{"$f":"Kalkulation!F33","v":0}]
["*Z=Zeittarif mit Kostendach; P=Pauschale; G=teuerungsbereinigte Pauschale"]
[]
["Zusammenstellung:"]
[]
["Honorar Leistungen gemäss Dokument ABC spezial ",null,null,null,{"$f":"SUM(E4:E5)","v":0}]
["Nebenkosten (%-Satz v. Honorar)",null,null,"[%]",{"$f":"MROUND(SUM(E10:E10)*C11%,0.05)","v":0},"gelbe Felder ausfüllen, auch mit \"0\"!\nFarbe ändert sich nach Eingabe"]
[]
["Zwischentotal 1",null,null,null,{"$f":"SUM(E10:E11)","v":0}]
["Rabatt",null,null,"[%]",{"$f":"MROUND(E13*C14%,0.05)","v":0}]
[]
["Zwischentotal 2",null,null,null,{"$f":"E13-E14","v":0}]
["Skonto",null,null,"[%]",{"$f":"MROUND(E16*C17%,0.05)","v":0}]
[]
["Zwischentotal 3",null,null,null,{"$f":"E16-E17","v":0}]
["MwSt. 7.7 %",null,null,null,{"$f":"MROUND(E19*0.077,0.05)","v":0}]
[]
["Angebotssumme netto inkl. MwSt. wird auf Titelblatt übertragen",null,null,null,{"$f":"E19+E20","v":0}]
[]
[]
[]
[]
[]
[]
[]
["_____________________________",null,null,null,"_________________________________________"]
["Ort, Datum                                                                                      Firmenstempel und Unterschrift(en)"]

{"sheet":"Auftraggeber","index":3,"n_rows":15,"n_cols":21,"rows_kept":15,"cut":false,"hidden":false,"merged":[[9,20,10,25],[17,0,17,3],[18,0,18,3],[14,0,14,3],[7,6,7,7],[7,0,8,0],[7,2,8,2],[7,3,8,3],[7,4,7,5]]}
[]
[]
[]
[]
[null,null,null,"einfachere Aufgaben"]
[null,null,null,"anspruchsvolle Aufgaben"]
[null,null,null,"sehr anspruchsvolle Aufgaben"]
["Phase ",null,"Teilphase","Bestandteil Submission","Kalkulationsmodell",null,"Vergütungsmodell"]
[null,null,null,null,"Stunden-schätzung Anbieter","Stunden-schätzung Bauherr","Zeitaufwand mit KD","Pauschale Vergütung",null,"Anbieter","Bauherr"]
["2 Vorstudien",21,"Definition des Bauvorhabens, Machbarkeitsstudie",null,null,null,null,null,false,false,false,{"$f":"IF(AND(J10=TRUE,K10=TRUE),0,1)","v":1},{"$f":"IF(OR(J10=TRUE,K10=TRUE),1,0)","v":0},{"$f":"IF(AND(AND(L10=1,M10=1),I10=TRUE),1,0)","v":0},false,false,{"$f":"IF(AND(O10=TRUE,P10=TRUE),0,1)","v":1},{"$f":"IF(OR(O10=TRUE,P10=TRUE),1,0)","v":0},{"$f":"IF(AND(AND(Q10=1,R10,1),I10=TRUE),1,0)","v":0},{"$f":"IF(OR(AND(AND(I10=TRUE,N10=1),S10=1),AND(I10=FALSE,J10=FALSE,K10=FALSE,O10=FALSE,P10=FALSE)),1,0)","v":1},"Zeilen erscheinen rot bis sie korrekt ausgefüllt sind (Bestandteil + ein Kalkulationsmodell + ein Vergütungsmodell)"]
["Leistungen \nohne sia-Bezug",null,null,null,null,null,null,null,false,false,false,{"$f":"IF(AND(J11=TRUE,K11=TRUE),0,1)","v":1},{"$f":"IF(OR(J11=TRUE,K11=TRUE),1,0)","v":0},{"$f":"IF(AND(AND(L11=1,M11=1),I11=TRUE),1,0)","v":0},false,false,{"$f":"IF(AND(O11=TRUE,P11=TRUE),0,1)","v":1},{"$f":"IF(OR(O11=TRUE,P11=TRUE),1,0)","v":0},{"$f":"IF(AND(AND(Q11=1,R11,1),I11=TRUE),1,0)","v":0},{"$f":"IF(OR(AND(AND(I11=TRUE,N11=1),S11=1),AND(I11=FALSE,J11=FALSE,K11=FALSE,O11=FALSE,P11=FALSE)),1,0)","v":1}]
[]
[null,null,null,null,null,null,null,null,"nein"]
[]
["Zeitaufwand Total (exkl. erste Teilphase)"]

{"sheet":"Kalkulation","index":4,"n_rows":37,"n_cols":10,"rows_kept":37,"cut":false,"hidden":false,"merged":[[31,0,31,1],[32,0,32,1],[24,0,24,1],[25,0,25,1],[26,0,26,1],[27,0,27,1],[28,0,28,1],[30,1,30,5],[23,0,23,1],[13,0,13,1],[15,0,15,7],[15,10,16,17],[16,0,16,1],[17,0,17,1],[18,0,18,1],[19,0,19,1],[20,0,20,1],[21,0,21,1],[22,0,22,1],[13,9,14,17],[12,0,12,1],[6,0,6,1],[6,2,7,2],[6,3,7,3],[2,0,2,3],[3,0,3,3],[4,0,4,3],[5,0,5,3],[1,9,11,16],[0,0,0,7],[1,0,1,3],[1,4,1,5],[7,0,7,1],[6,4,7,4],[6,5,7,5]]}
["Aufwand der Leistungen gemäss Dokument ABC spezial"]
[null,null,null,null,null,null,"Total [h]","Total \n[CHF]",null,"Rote Felder zeigen an, dass die Kalkulation nicht korrekt vorgenommen wurde, d.h. dass Randbedingungen (z.B. Zeitaufwand gemäss Kalkulationsmodell, Stundenanteil Schlüsselpersonen) nicht eingehalten sind!"]
["Angabe Zeitaufwand durch den Anbieter",null,null,null,{"$f":"IF(Auftraggeber!J10=TRUE,\"\",\"-\")","v":"-"},{"$f":"IF(Auftraggeber!J11=TRUE,\"\",\"-\")","v":"-"},{"$f":"SUM(E3:F3)","v":0}]
["Angabe Zeitaufwand durch den Auftraggeber",null,null,null,{"$f":"IF(Auftraggeber!K10=TRUE,\"\",\"-\")","v":"-"},{"$f":"IF(Auftraggeber!K11=TRUE,\"\",\"-\")","v":"-"},{"$f":"SUM(E4:F4)","v":0}]
["SUMME",null,null,null,{"$f":"SUM(E3:E4)","v":0},{"$f":"SUM(F3:F4)","v":0},{"$f":"SUM(G3:G4)","v":0}]
["Vergütungsart",null,null,null,"-","-","-"]
["Schlüsselperson",null,"Honorar-kategorie","Stunden-ansatz\n[CHF/h]","21","Leistungenohne sia-Bezug"]
["Vorname, Name"]
["PL",null,null,{"$f":"IF(C9=\"A\",'Bemerkungen zum Angebot'!$C$15,IF(C9=\"b\",'Bemerkungen zum Angebot'!$D$15,IF(C9=\"c\",'Bemerkungen zum Angebot'!$E$15,IF(C9=\"d\",'Bemerkungen zum Angebot'!$F$15,IF(C9=\"e\",'Bemerkungen zum Angebot'!$G$15,IF(C9=\"f\",'Bemerkungen zum Angebot'!$H$15,IF(C9=\"g\",'Bemerkungen zum Angebot'!$I$15,0)))))))","v":0},null,null,{"$f":"SUM(E9:F9)","v":0},{"$f":"D9*G9","v":0}]
["PL Stv.",null,null,{"$f":"IF(C10=\"A\",'Bemerkungen zum Angebot'!$C$15,IF(C10=\"b\",'Bemerkungen zum Angebot'!$D$15,IF(C10=\"c\",'Bemerkungen zum Angebot'!$E$15,IF(C10=\"d\",'Bemerkungen zum Angebot'!$F$15,IF(C10=\"e\",'Bemerkungen zum Angebot'!$G$15,IF(C10=\"f\",'Bemerkungen zum Angebot'!$H$15,IF(C10=\"g\",'Bemerkungen zum Angebot'!$I$15,0)))))))","v":0},null,null,{"$f":"SUM(E10:F10)","v":0},{"$f":"D10*G10","v":0}]
["SB",null,null,{"$f":"IF(C11=\"A\",'Bemerkungen zum Angebot'!$C$15,IF(C11=\"b\",'Bemerkungen zum Angebot'!$D$15,IF(C11=\"c\",'Bemerkungen zum Angebot'!$E$15,IF(C11=\"d\",'Bemerkungen zum Angebot'!$F$15,IF(C11=\"e\",'Bemerkungen zum Angebot'!$G$15,IF(C11=\"f\",'Bemerkungen zum Angebot'!$H$15,IF(C11=\"g\",'Bemerkungen zum Angebot'!$I$15,0)))))))","v":0},null,null,{"$f":"SUM(E11:F11)","v":0},{"$f":"D11*G11","v":0}]
[null,null,null,{"$f":"IF(C12=\"A\",'Bemerkungen zum Angebot'!$C$15,IF(C12=\"b\",'Bemerkungen zum Angebot'!$D$15,IF(C12=\"c\",'Bemerkungen zum Angebot'!$E$15,IF(C12=\"d\",'Bemerkungen zum Angebot'!$F$15,IF(C12=\"e\",'Bemerkungen zum Angebot'!$G$15,IF(C12=\"f\",'Bemerkungen zum Angebot'!$H$15,IF(C12=\"g\",'Bemerkungen zum Angebot'!$I$15,0)))))))","v":0},null,null,{"$f":"SUM(E12:F12)","v":0},{"$f":"D12*G12","v":0}]
["Summe [h]",null,null,null,{"$f":"E9+E10+E11+E12","v":0},0,{"$f":"G9+G10+G11+G12","v":0},"-"]
["Summe [CHF]",null,null,null,{"$f":"$D$9*E9+$D$10*E10+$D$11*E11+$D$12*E12","v":0},0,"-",{"$f":"H9+H10+H11+H12","v":0},"A","Gelbe Felder ausfüllen, Farbe ändert sich nach Eingabe"]
[null,null,null,null,null,null,null,null,"B"]
["Weitere Mitarbeiter",null,null,null,null,null,null,null,"C"]
["Vorname, Name",null,null,null,null,null,null,null,"D"]
[null,null,null,{"$f":"IF(C18=\"A\",'Bemerkungen zum Angebot'!$C$15,IF(C18=\"b\",'Bemerkungen zum Angebot'!$D$15,IF(C18=\"c\",'Bemerkungen zum Angebot'!$E$15,IF(C18=\"d\",'Bemerkungen zum Angebot'!$F$15,IF(C18=\"e\",'Bemerkungen zum Angebot'!$G$15,IF(C18=\"f\",'Bemerkungen zum Angebot'!$H$15,IF(C18=\"g\",'Bemerkungen zum Angebot'!$I$15,0)))))))","v":0},null,null,{"$f":"SUM(E18:F18)","v":0},{"$f":"D18*G18","v":0},"E"]
[null,null,null,{"$f":"IF(C19=\"A\",'Bemerkungen zum Angebot'!$C$15,IF(C19=\"b\",'Bemerkungen zum Angebot'!$D$15,IF(C19=\"c\",'Bemerkungen zum Angebot'!$E$15,IF(C19=\"d\",'Bemerkungen zum Angebot'!$F$15,IF(C19=\"e\",'Bemerkungen zum Angebot'!$G$15,IF(C19=\"f\",'Bemerkungen zum Angebot'!$H$15,IF(C19=\"g\",'Bemerkungen zum Angebot'!$I$15,0)))))))","v":0},null,null,0,0,"F"]
[null,null,null,{"$f":"IF(C20=\"A\",'Bemerkungen zum Angebot'!$C$15,IF(C20=\"b\",'Bemerkungen zum Angebot'!$D$15,IF(C20=\"c\",'Bemerkungen zum Angebot'!$E$15,IF(C20=\"d\",'Bemerkungen zum Angebot'!$F$15,IF(C20=\"e\",'Bemerkungen zum Angebot'!$G$15,IF(C20=\"f\",'Bemerkungen zum Angebot'!$H$15,IF(C20=\"g\",'Bemerkungen zum Angebot'!$I$15,0)))))))","v":0},null,null,0,0,"G"]
[null,null,null,{"$f":"IF(C21=\"A\",'Bemerkungen zum Angebot'!$C$15,IF(C21=\"b\",'Bemerkungen zum Angebot'!$D$15,IF(C21=\"c\",'Bemerkungen zum Angebot'!$E$15,IF(C21=\"d\",'Bemerkungen zum Angebot'!$F$15,IF(C21=\"e\",'Bemerkungen zum Angebot'!$G$15,IF(C21=\"f\",'Bemerkungen zum Angebot'!$H$15,IF(C21=\"g\",'Bemerkungen zum Angebot'!$I$15,0)))))))","v":0},null,null,0,0]
[null,null,null,{"$f":"IF(C22=\"A\",'Bemerkungen zum Angebot'!$C$15,IF(C22=\"b\",'Bemerkungen zum Angebot'!$D$15,IF(C22=\"c\",'Bemerkungen zum Angebot'!$E$15,IF(C22=\"d\",'Bemerkungen zum Angebot'!$F$15,IF(C22=\"e\",'Bemerkungen zum Angebot'!$G$15,IF(C22=\"f\",'Bemerkungen zum Angebot'!$H$15,IF(C22=\"g\",'Bemerkungen zum Angebot'!$I$15,0)))))))","v":0},null,null,0,0]
[null,null,null,{"$f":"IF(C23=\"A\",'Bemerkungen zum Angebot'!$C$15,IF(C23=\"b\",'Bemerkungen zum Angebot'!$D$15,IF(C23=\"c\",'Bemerkungen zum Angebot'!$E$15,IF(C23=\"d\",'Bemerkungen zum Angebot'!$F$15,IF(C23=\"e\",'Bemerkungen zum Angebot'!$G$15,IF(C23=\"f\",'Bemerkungen zum Angebot'!$H$15,IF(C23=\"g\",'Bemerkungen zum Angebot'!$I$15,0)))))))","v":0},null,null,0,0]
[null,null,null,{"$f":"IF(C24=\"A\",'Bemerkungen zum Angebot'!$C$15,IF(C24=\"b\",'Bemerkungen zum Angebot'!$D$15,IF(C24=\"c\",'Bemerkungen zum Angebot'!$E$15,IF(C24=\"d\",'Bemerkungen zum Angebot'!$F$15,IF(C24=\"e\",'Bemerkungen zum Angebot'!$G$15,IF(C24=\"f\",'Bemerkungen zum Angebot'!$H$15,IF(C24=\"g\",'Bemerkungen zum Angebot'!$I$15,0)))))))","v":0},null,null,0,0]
[null,null,null,{"$f":"IF(C25=\"A\",'Bemerkungen zum Angebot'!$C$15,IF(C25=\"b\",'Bemerkungen zum Angebot'!$D$15,IF(C25=\"c\",'Bemerkungen zum Angebot'!$E$15,IF(C25=\"d\",'Bemerkungen zum Angebot'!$F$15,IF(C25=\"e\",'Bemerkungen zum Angebot'!$G$15,IF(C25=\"f\",'Bemerkungen zum Angebot'!$H$15,IF(C25=\"g\",'Bemerkungen zum Angebot'!$I$15,0)))))))","v":0},null,null,0,0]
[null,null,null,{"$f":"IF(C26=\"A\",'Bemerkungen zum Angebot'!$C$15,IF(C26=\"b\",'Bemerkungen zum Angebot'!$D$15,IF(C26=\"c\",'Bemerkungen zum Angebot'!$E$15,IF(C26=\"d\",'Bemerkungen zum Angebot'!$F$15,IF(C26=\"e\",'Bemerkungen zum Angebot'!$G$15,IF(C26=\"f\",'Bemerkungen zum Angebot'!$H$15,IF(C26=\"g\",'Bemerkungen zum Angebot'!$I$15,0)))))))","v":0},null,null,0,0]
[null,null,null,{"$f":"IF(C27=\"A\",'Bemerkungen zum Angebot'!$C$15,IF(C27=\"b\",'Bemerkungen zum Angebot'!$D$15,IF(C27=\"c\",'Bemerkungen zum Angebot'!$E$15,IF(C27=\"d\",'Bemerkungen zum Angebot'!$F$15,IF(C27=\"e\",'Bemerkungen zum Angebot'!$G$15,IF(C27=\"f\",'Bemerkungen zum Angebot'!$H$15,IF(C27=\"g\",'Bemerkungen zum Angebot'!$I$15,0)))))))","v":0},null,null,0,0]
["Summe [h]",null,null,null,{"$f":"SUM(E18:E27)","v":0},0,{"$f":"SUM(G18:G27)","v":0},"-"]
["Summe [CHF]",null,null,null,{"$f":"$D$18*E18+$D$19*E19+$D$20*E20+$D$21*E21+$D$22*E22+$D$23*E23+$D$24*E24+$D$25*E25+$D$26*E26+$D$27*E27","v":0},0,"-",{"$f":"SUM(H18:H28)","v":0}]
[]
[]
["Total [h]",null,null,null,{"$f":"E13+E28","v":0},{"$f":"F13+F28","v":0},{"$f":"G13+G28","v":0},"-"]
["Total [CHF]",null,null,null,{"$f":"E14+E29","v":0},0,"-",{"$f":"H14+H29","v":0}]
[]
[]
[]
[null,null,null,null,{"$f":"IF(#REF!=\"-\",TRUE,FALSE)","v":{"$error":"#REF!"}},{"$f":"IF(#REF!=\"-\",TRUE,FALSE)","v":{"$error":"#REF!"}}]